Cogmind - Beta 9.6 @@@ ROGUE MODE // 2020.07.24 @ 19:37:52 Player: Phillammon Result: Destroyed by G-47 Trooper with Particle Gun Performance ------------- Evolutions (2) 1000 Regions Visited (6) 1200 Robots Destroyed (34) 170 Value Destroyed (1093) 1093 Prototype IDs (3) 60 Alien Tech Used (0) 0 Bonus (0) 0 TOTAL SCORE: 3523 Bonus ------- None Cogmind --------- Core Integrity 0/550 Matter 300/300 Energy 100/100 System Corruption 0% Temperature Cool (9) Movement Core (600) Ox11 Location -8/Storage Parts ------- > --- POWER (1) -------- (None) > --- PROPULSION (4) --- (None) > --- UTILITY (4) ------ Small Storage Unit High-capacity Storage Unit > --- WEAPON (2) ------- (None) > --- INVENTORY (14) --- Heavy Explosive Trap Heavy Explosive Trap Heavy Explosive Trap Heavy Explosive Trap Peak State ------------ > --- POWER ------------ Ion Engine > --- PROPULSION ------- Aluminum Leg Aluminum Leg Carbon-fiber Leg Carbon-fiber Leg > --- UTILITY ---------- High-capacity Storage Unit High-capacity Matter Pod > --- WEAPON ----------- Shotgun High-powered Shotgun > --- INVENTORY -------- Aluminum Leg Aluminum Leg Small Storage Unit Large Matter Pod Heavy Assault Rifle Advanced EMP Blaster Advanced EMP Blaster Mining Laser Heavy Explosive Trap Heavy Explosive Trap Heavy Explosive Trap Heavy Explosive Trap [Rating: 19] Favorites ----------- Power Light Nuclear Core Engine Light Ion Engine Power Core Light Nuclear Core Propulsion Aluminum Leg Leg Aluminum Leg Utility High-capacity Storage Unit Storage High-capacity Storage Unit Weapon Assault Rifle Energy Gun Small Laser Ballistic Gun Assault Rifle Launcher Advanced EMP Blaster Special Weapon Mining Laser Build | -11 -10 -10 -9 -9 -8 -8 ------- Run | Scr Mat Min Mat Min Mat Sto Slots Evolved 4 | . . . 2 . 2 . Power . | . . . . . . . Propulsion 2 | . . . 2 . . . Utility 2 | . . . . . 2 . Weapon . | . . . . . . . Parts Attached 35 | 6 3 2 2 2 8 12 Power 4 | 1 1 . . . 1 1 Engine 3 | 1 . . . . 1 1 Core 1 | . 1 . . . . . Reactor . | . . . . . . . Propulsion 13 | 2 . 1 2 1 4 3 Treads . | . . . . . . . Leg 13 | 2 . 1 2 1 4 3 Wheel . | . . . . . . . Hover . | . . . . . . . Flight . | . . . . . . . Utility 5 | 1 1 . . . 1 2 Device . | . . . . . . . Storage 5 | 1 1 . . . 1 2 Processor . | . . . . . . . Hackware . | . . . . . . . Protection . | . . . . . . . Artifact . | . . . . . . . Weapon 13 | 2 1 1 . 1 2 6 Energy Gun 1 | 1 . . . . . . Energy Cannon . | . . . . . . . Ballistic Gun 8 | 1 1 1 . 1 2 2 Ballistic Cannon . | . . . . . . . Launcher 2 | . . . . . . 2 Special Weapon 2 | . . . . . . 2 Impact Weapon . | . . . . . . . Slashing Weapon . | . . . . . . . Piercing Weapon . | . . . . . . . Special Melee Weapon . | . . . . . . . Unidentified Prototypes 1 | . . . . . . 1 Parts Lost 26 | . . 2 1 2 4 17 Power 3 | . . . . . 1 2 Propulsion 11 | . . 1 . 1 2 7 Utility 2 | . . . . . . 2 Weapon 10 | . . 1 1 1 1 6 Highest Loss Streak 17 | . . 2 1 2 4 17 Average Slot Usage (%) 76 | . 85 82 88 85 70 60 Engine 2 | . 3 . . . 1 6 Core 7 | . 10 14 11 11 4 . Leg 31 | . 28 28 44 44 35 21 Storage 13 | . 14 14 11 11 11 18 Ballistic Gun 20 | . 26 25 22 19 17 12 Naked Turns . | . . . . . . . Heaviest Build 48 | 10 41 41 40 39 47 48 Greatest Support 50 | 20 20 20 40 40 50 50 Greatest Overweight (x) 14 | . 2 4 . 1 1 14 Average Overweight (x) . | . . 1 . . . 1 Largest Inventory Capacity 14 | 6 12 12 12 12 12 14 Average Capacity 10 | 5 7 12 12 12 12 12 Most Carried 12 | 4 7 12 12 12 12 12 Average Carried 7 | 1 3 9 11 11 11 9 Final Capacity 14 | 6 12 12 12 12 12 14 Final Carried 12 | 1 7 12 12 12 12 4 Class Distribution -------------------- 63% | Mutant 36% | Scavenger-Mutant Dominant Class ---------------- Mutant | -10/Materials Mutant | -10/Mines Scavenger-Mutant | -9/Materials Scavenger-Mutant | -9/Mines Scavenger-Mutant | -8/Materials Mutant | -8/Storage Resources | -11 -10 -10 -9 -9 -8 -8 ----------- Run | Scr Mat Min Mat Min Mat Sto Matter Collected 1318 | 169 121 425 51 115 243 194 Remotely . | . . . . . . . Salvage Created 1247 | . 121 239 51 134 364 338 Parts 68 | . 5 17 5 8 14 19 Haulers Intercepted 1 | . . . . . 1 . Recyclers Shooed . | . . . . . . . Parts Field Recycled . | . . . . . . . Retrieved Matter . | . . . . . . . Parts Self-Destructed . | . . . . . . . Prevented . | . . . . . . . Kills | -11 -10 -10 -9 -9 -8 -8 ------- Run | Scr Mat Min Mat Min Mat Sto Combat Hostiles Destroyed 29 | . 2 5 1 4 7 10 Guns 26 | . 2 5 1 4 7 7 Cannons 1 | . . . . . . 1 AOE 2 | . . . . . . 2 Classes Destroyed 9 | . 2 3 1 1 2 . Worker 2 | . . 1 . . . 1 Hauler 1 | . . . . . 1 . Recycler 1 | . . 1 . . . . Watcher 1 | . 1 . . . . . Swarmer 7 | . . 3 . 2 . 2 Grunt 16 | . 2 2 . 1 5 6 Brawler 1 | . . . . 1 . . Sentry 4 | . . . 1 . 1 2 Hunter 1 | . . . . . 1 . Best Kill Streak 6 | . 1 4 1 2 3 6 Combat Bots Only 5 | . 1 3 1 2 3 5 Max Kills in Single Turn 2 | . 1 1 1 1 2 2 Gunslinging . | . . . . . . . Exploded 2 | . . . . . . 2 Melee . | . . . . . . . Uniques/NPCs Destroyed . | . . . . . . . Combat | -11 -10 -10 -9 -9 -8 -8 -------- Run | Scr Mat Min Mat Min Mat Sto Damage Taken 2953 | . 77 318 191 280 554 1533 Core 741 | . . 109 27 44 128 433 Absorbed by Shields . | . . . . . . . Core Remaining (%) 79 | 100 . 56 . 82 . . Volleys Fired 111 | . 9 19 5 18 27 33 Largest 2 | . 2 2 2 2 2 2 Hottest 123 | . 40 40 40 40 48 123 Shots Fired 207 | . 18 36 10 31 54 58 Gun 204 | . 18 36 10 31 54 55 Cannon . | . . . . . . . Launcher 2 | . . . . . . 2 Special 1 | . . . . . . 1 Kinetic 204 | . 18 36 10 31 54 55 Thermal 1 | . . . . . . 1 Explosive . | . . . . . . . Electromagnetic 2 | . . . . . . 2 Robot Hit Streak 10 | . 4 6 3 7 10 7 Robot Miss Streak 5 | . 2 2 2 3 5 4 Penetration Max . | . . . . . . . Secondary Targets 4 | . . 1 . 1 2 . Max Gunslinging Chain 1 | . . 1 . 1 1 . Shots Hit Robots 150 | . 12 24 4 20 41 49 Core Hits 77 | . 5 9 2 8 26 27 Critical Hits 1 | . . . . . 1 . Critical Kills . | . . . . . . . Critical Parts Destroyed 1 | . . . . . 1 . Melee Attacks . | . . . . . . . Impact . | . . . . . . . Slashing . | . . . . . . . Piercing . | . . . . . . . Sneak Attacks . | . . . . . . . Combat Hostiles . | . . . . . . . Follow-up Attacks . | . . . . . . . Damage Inflicted 2410 | . 144 342 63 192 576 1093 Guns 2243 | . 144 342 58 191 576 932 Cannons . | . . . . . . . Explosions 137 | . . . . . . 137 Melee . | . . . . . . . Ramming 6 | . . . 5 1 . . Kinetic 2243 | . 144 342 58 191 576 932 Thermal 24 | . . . . . . 24 Explosive . | . . . . . . . Electromagnetic 137 | . . . . . . 137 Impact . | . . . . . . . Slashing . | . . . . . . . Piercing . | . . . . . . . Highest Corruption 1 | . . . 1 1 . . Average Corruption 1 | . . . 1 1 . . Corruption Purged . | . . . . . . . Overload Shots . | . . . . . . . Overflow Damage . | . . . . . . . Projectiles . | . . . . . . . Explosions . | . . . . . . . Melee . | . . . . . . . Knockbacks . | . . . . . . . Impact . | . . . . . . . Kinetic . | . . . . . . . Secondary . | . . . . . . . Self-Inflicted Damage . | . . . . . . . Shots . | . . . . . . . Rammed . | . . . . . . . Targets Rammed 2 | . . . 1 1 . . Kicked 2 | . . . 1 1 . . Crushed . | . . . . . . . Highest Temperature 12 | . 2 4 8 9 12 10 Average Temperature 4 | . 2 2 7 6 7 7 Received Heat Transfer 1311 | . 45 114 99 45 252 756 Siege Activations . | . . . . . . . Robots Corrupted . | . . . . . . . Combat Hostiles . | . . . . . . . Parts Fried . | . . . . . . . Impact Corruptions . | . . . . . . . Robots Melted . | . . . . . . . Combat Hostiles . | . . . . . . . Parts Melted . | . . . . . . . Heat Transferred 50 | . . . . . . 50 Parts Sabotaged . | . . . . . . . Parts Stolen . | . . . . . . . Parts Stripped . | . . . . . . . Power Chain Reactions . | . . . . . . . Missiles Intercepted . | . . . . . . . Alert | -11 -10 -10 -9 -9 -8 -8 ------- Run | Scr Mat Min Mat Min Mat Sto Peak Influence 310 | . 69 141 114 120 214 310 Average Influence 79 | . 47 91 94 80 76 168 Maximum Alert Level 1 | . . . . . 1 1 Low Security (%) 93 | 100 100 100 100 100 97 63 Level 1 6 | . . . . . 2 36 Level 2 . | . . . . . . . Level 3 . | . . . . . . . Level 4 . | . . . . . . . Level 5 . | . . . . . . . High Security . | . . . . . . . Max Security . | . . . . . . . Squads Dispatched 10 | . 1 . 2 . 2 5 Investigation 3 | . . . 1 . . 2 Extermination . | . . . . . . . Reinforcement 5 | . 1 . 1 . . 3 Assault . | . . . . . . . Garrison 2 | . . . . . 2 . Intercept . | . . . . . . . Construction Impeded 1 | . . . . . . 1 Haulers Reinforced . | . . . . . . . Stealth | -11 -10 -10 -9 -9 -8 -8 --------- Run | Scr Mat Min Mat Min Mat Sto Distress Signals 5 | . . . 3 . 1 1 Communications Jammed . | . . . . . . . Distress Signals . | . . . . . . . Times Spotted 53 | . 4 5 8 6 11 19 Peak Tracking Total 7 | . 2 3 7 3 5 5 Tactical Retreats 5 | . . . . 1 2 2 Traps | -11 -10 -10 -9 -9 -8 -8 ------- Run | Scr Mat Min Mat Min Mat Sto Traps Triggered 2 | . . . 2 . . . Indirectly . | . . . . . . . Trap Hack Attempts . | . . . . . . . Triggered . | . . . . . . . Disarmed . | . . . . . . . Reprogrammed 6 | . . . . . . 6 Reused 1 | . . . . . . 1 Traps Extracted . | . . . . . . . Installed . | . . . . . . . Triggered 1 | . . . . . . 1 Machines | -11 -10 -10 -9 -9 -8 -8 ---------- Run | Scr Mat Min Mat Min Mat Sto Machines Disabled 1 | . . . . . . 1 Max in Single Turn 1 | . . . . . . 1 Machines Sabotaged . | . . . . . . . Garrisons Compromised . | . . . . . . . Overloaded Fab Kills . | . . . . . . . Fab Network Shutdowns . | . . . . . . . Hacking | -11 -10 -10 -9 -9 -8 -8 --------- Run | Scr Mat Min Mat Min Mat Sto Machines Accessed 6 | . 2 1 . . . 3 Terminals 6 | . 2 1 . . . 3 Fabricators . | . . . . . . . Repair Stations . | . . . . . . . Recycling Units . | . . . . . . . Scanalyzers . | . . . . . . . Garrison Access . | . . . . . . . Total Hacks 13 | . 4 2 . . . 7 Successful 11 | . 3 2 . . . 6 Failed 2 | . 1 . . . . 1 Catastrophic 1 | . . . . . . 1 Database Lockouts . | . . . . . . . Manual . | . . . . . . . Terminals 13 | . 4 2 . . . 7 Fabricators . | . . . . . . . Repair Stations . | . . . . . . . Recycling Units . | . . . . . . . Scanalyzers . | . . . . . . . Garrison Access . | . . . . . . . Terminal Hacks 11 | . 3 2 . . . 6 Record 4 | . . 1 . . . 3 Part Schematic 1 | . . . . . . 1 Prototype ID Bank 1 | . 1 . . . . . Open Door 1 | . . . . . . 1 Branch Access Points 1 | . 1 . . . . . Reprogram Traps 1 | . . . . . . 1 Hauler Manifests 1 | . 1 . . . . . Zone Layout 1 | . . 1 . . . . Fabricator Hacks . | . . . . . . . Repair Station Hacks . | . . . . . . . Recycling Unit Hacks . | . . . . . . . Scanalyzer . | . . . . . . . Garrison Access Hacks . | . . . . . . . Unauthorized Hacks . | . . . . . . . Terminals . | . . . . . . . Fabricators . | . . . . . . . Repair Stations . | . . . . . . . Recycling Units . | . . . . . . . Scanalyzers . | . . . . . . . Garrison Access . | . . . . . . . Data Cores Recovered . | . . . . . . . Used . | . . . . . . . Hacking Detections 3 | . 1 . . . . 2 Full Trace Events 3 | . 1 . . . . 2 Feedback Events . | . . . . . . . Feedback Blocked . | . . . . . . . Robot Schematics Acquired . | . . . . . . . Robots Built . | . . . . . . . Matter . | . . . . . . . Time . | . . . . . . . Total Robot Build Rating . | . . . . . . . Part Schematics Acquired 1 | . . . . . . 1 Parts Built . | . . . . . . . Matter . | . . . . . . . Time . | . . . . . . . Total Part Build Rating . | . . . . . . . Parts Repaired . | . . . . . . . Time . | . . . . . . . Parts Recycled . | . . . . . . . Recycled Matter . | . . . . . . . Retrieved Matter . | . . . . . . . Retrieved Components . | . . . . . . . Parts Scanalyzed . | . . . . . . . Part Schematics Acquired . | . . . . . . . Parts Damaged . | . . . . . . . Bothacking | -11 -10 -10 -9 -9 -8 -8 ------------ Run | Scr Mat Min Mat Min Mat Sto Used RIF Installer . | . . . . . . . Robots Hacked . | . . . . . . . Non-combat . | . . . . . . . Combat . | . . . . . . . Robot Hacks Applied . | . . . . . . . Relay Couplers Released . | . . . . . . . Robots Rewired . | . . . . . . . Allies Hacked . | . . . . . . . Hacks Repelled . | . . . . . . . Allies | -11 -10 -10 -9 -9 -8 -8 -------- Run | Scr Mat Min Mat Min Mat Sto Total Allies 1 | . . . . 1 . . Largest Group 1 | . . . . 1 1 . Highest-Rated Group 31 | . . . . 31 31 . Highest-Rated Ally 31 | . . . . 31 31 . Total Orders . | . . . . . . . Ally Attacks 6 | . . . . . 6 . Total Damage 61 | . . . . . 61 . Kills . | . . . . . . . Allies Corrupted . | . . . . . . . Allies Melted . | . . . . . . . Intel | -11 -10 -10 -9 -9 -8 -8 ------- Run | Scr Mat Min Mat Min Mat Sto Robot Analysis Total . | . . . . . . . Derelict Logs Recovered . | . . . . . . . Drone Launches . | . . . . . . . Drone Recoveries . | . . . . . . . Exploration | -11 -10 -10 -9 -9 -8 -8 ------------- Run | Scr Mat Min Mat Min Mat Sto Turns Passed 1729 | 339 184 359 153 117 270 307 Spaces Moved 739 | 47 108 177 112 58 119 118 Core 11 | 3 . . . . . 8 Treads . | . . . . . . . Legs 728 | 44 108 177 112 58 119 110 Wheels . | . . . . . . . Hover . | . . . . . . . Flight . | . . . . . . . Fastest Speed 50 | 50 120 150 120 120 120 120 Average Speed 144 | 115 137 164 120 120 137 171 Slowest Speed 750 | 120 180 240 120 150 150 750 Overloaded Moves . | . . . . . . . Propulsion Burnouts . | . . . . . . . Robots Hopped . | . . . . . . . Cave-ins Triggered . | . . . . . . . Exploration Rate (%) 20 | 6 28 40 19 13 14 26 Regions Visited 6 Branch Regions 3 Pre-discovered Areas 1 | . . . . . 1 . Known Exits Taken 1 | . 1 . . . . . Unknown Exits Taken 5 | 1 . 1 1 1 1 . Scrap Searched 1 | . . 1 . . . . Spaces Dug . | . . . . . . . Terrain Destroyed . | . . . . . . . Melee . | . . . . . . . Projectile . | . . . . . . . AOE . | . . . . . . . Actions | -11 -10 -10 -9 -9 -8 -8 --------- Run | Scr Mat Min Mat Min Mat Sto Total 1203 | 331 126 210 121 80 171 164 Wait 285 | 272 . . . . 13 . Move 734 | 46 107 176 112 57 118 118 Hop . | . . . . . . . Pick Up 32 | 7 6 10 2 2 4 1 Fast Attach 4 | . . . . . 3 1 Attach 25 | 6 1 2 2 2 3 9 Detach 1 | . 1 . . . . . Swap 6 | . 2 . . . 2 2 Drop 4 | . . 3 . . 1 . Fire 111 | . 9 19 5 18 27 33 Melee . | . . . . . . . Ram . | . . . . . . . Kick 1 | . . . . 1 . . Crush . | . . . . . . . Escape Stasis . | . . . . . . . Rewire . | . . . . . . . Trap . | . . . . . . . Miscellaneous . | . . . . . . . Route ------- -11/Scrapyard -10/Materials (discovered 2 exits: *Min x2) -10/Mines -9/Materials -9/Mines -8/Materials -8/Storage History --------- Turn | Location | Event 6 | -11/Scrapyard | Discovered new exit (range 16) 340 | -11/Scrapyard | Entered Materials 341 | -10/Materials | Build established: Mutant 426 | -10/Materials | Identified exit to Mines 524 | -10/Materials | Entered Mines 787 | -10/Mines | Found a hidden stash of uninstalled traps 871 | -10/Mines | Discovered new exit (range 9) 883 | -10/Mines | Entered Materials 883 | -9/Materials | Evolved 2 slots: Propulsion x2 1018 | -9/Materials | Discovered new exit (range 15) 1036 | -9/Materials | Entered Mines 1090 | -9/Mines | Received a Rocket Launcher from a helpful Derelict 1093 | -9/Mines | Discovered new exit (range 11) 1141 | -9/Mines | Escorted by a lone wolf Derelict 1153 | -9/Mines | Entered Materials 1153 | -8/Materials | Accompanied by 1 ally 1153 | -8/Materials | Evolved 2 slots: Utility x2 1161 | -8/Materials | Learned location of Storage (-8) 1186 | -8/Materials | Build established: Scavenger-Mutant 1271 | -8/Materials | Garrison activated, responded to threat 1361 | -8/Materials | Lost 4 parts (1p2n1w) 1409 | -8/Materials | Discovered new exit (range 7) 1423 | -8/Materials | Entered Storage 1666 | -8/Storage | Core integrity fell below 50% 1693 | -8/Storage | Core integrity fell below 20% 1730 | -8/Storage | Destroyed by G-47 Trooper with Particle Gun Last Messages --------------- K-01 Serf collects debris. U-05 Engineer builds a Door. K-01 Serf collects debris. G-47 Trooper misfires. K-01 Serf collects debris. Hcp. Matter Pod destroyed. S-10 Pest misfires. Adv. EMP Blaster destroyed. Aluminum Leg destroyed. Adv. EMP Blaster destroyed. U-05 Engineer lays Concrete. S-10 Pest IFF system glitched. Mining Laser destroyed. S-10 Pest destroyed. Hvy. Assault Rifle destroyed. K-01 Serf collects debris. Connecting with Terminal... >>Open Sealed Heavy Doors opened. Lrg. Matter Pod destroyed. Map ----- +----------------------------------------------------+ | ??# """#???????????????????????????????????????? | | ??# ####???????????????????????????????????????? | | ??#^^^#??????????????????????????????????????????? | | ??#^^^#??????????????????????????????????????????? | | ??# #??????????????????????????????????????????? | | ??# #??????????????????????????????????????????? | | ?## ##?????????????????????????????????????????? | | ?# ##+##########?????????????????????????????? | | ?# ????????????????????????????? | | ?# ????????????????????????????? | | ?# ????????????????????????????? | | ?# #####/######??????????????????????????????? | | ?#### ##?????????????????????????????????????????? | | ????# #??????????????????????????????????????????? | | ## #??????????????????????????????????????????? | | + #??????????????????????????????????????????? | | # ###????????????????????????????????????????? | | ??# ""#????????????????????????????????????????? | | ????# T"#????????????????????????????????????????? | | ????# ""#????????????????????????????????????????? | | ????# ###????????????????????????????????????????? | | ????# #?????????????????????#####????????????????? | | ????# #?????????????????????# #????????????????? | | ????# #?????????????????????# #????????????????? | | ????# #?????????????????##### #????????????????? | | ????# #?????????????????#@gg/ #????????????????? | | ????# #?????????????????###T# ##???????????????? | | ????# #???????????????????### T#???????????????? | | ????# #???#####?????????????# ##???????????????? | | ????# ##### #?????????????# #????????????????? | | ????# #?????????????# =#????????????????? | | ????# ##### #????????????## %##???????????????? | | ????#+######=##??########### [ ##### ##????????? | | ????# #%#???# %! %= ?????? | | ????# #%##### =! %% ????? | | ????# + %== = ?????? | | ????# # ######/######## ####### #?????? | | ????# # ## [ #??###+###???????? ??????? | | ????# #^## ! #????????????????????????? | | ????########"## """ """ #????????????????????????? | | ??????????? # """ """ #????????????????????????? | | ??????????? # """ """ #???????????????????????? | | ??????????? # """ """ ##???????????????????????? | | ??????????? # """ """ #????????????????????????? | | ??????????? ?? ??#????????????????????????? | | ??????????? ??#####????????????????????????????? | | ???????????###???????????????????????????????????? | | ?????????????????????????????????????????????????? | | ?????????????????????????????????????????????????? | | ?????????????????????????????????????????????????? | +----------------------------------------------------+ Best States ------------- Heat Dissipation 31 Energy Generation 14 Energy Capacity 265 Matter Stores 500 Matter Capacity 500 Sight Range 16 Terrain Scan Density 10 Evasion (%) 40 Item Schematics ----------------- Imp. Carbon-fiber Leg | -8/Storage | Hacked Robot Schematics ------------------ None Fabricated ------------ Nothing Alien Tech Used ----------------- None Achievements -------------- None Challenges ------------ None Game ------ Seed TerrabombOverloadBox Manual? 0 Play Time 00:15:01 Cumulative 7.7 hours Start 2020.07.24 @ 19:23:31 End 2020.07.24 @ 19:37:52 Sessions 1 Manual Loads 0 Difficulty Rogue Special Mode None Game No. 19 Rogue 19 Adventurer 0 Explorer 0 Win Type - Total 0 Types 0/0/0/0/0/0/0 Lore% 9 Gallery% 17 Achievement% 13 Wizard Run 0 Options --------- ASCII 0 Keyboard 0 Movement Mouse Keybinds 0 Fullscreen 1 Font 18/SmallcapsGlow Map View 76x50 Tactical HUD 0 Map Filters NONE Filters NONE Steam 0 RUN: 016f0c3a-58d6-43c8-96e2-b3ccc6d14787